[Event "Late-Titled-Tuesday-Blitz-January-16-2024"]
[Site "Chess.com"]
[Date "2024.01.16"]
[Round "3"]
[White "stasOR4ik"]
[Black "vova-79"]
[Result "0-1"]
[WhiteElo "2424"]
[BlackElo "2611"]
[TimeControl "180+1"]
[EndTime "14:23:35 PST"]
[Termination "vova-79 won by resignation"]

1. e4 {[%clk 0:02:55.5]} 1... c6 {[%clk 0:02:59.1]} 2. c4 {[%clk 0:02:55.5]}
2... d5 {[%clk 0:02:59.3]} 3. cxd5 {[%clk 0:02:56.4]} 3... cxd5 {[%clk
0:02:59.7]} 4. exd5 {[%clk 0:02:57.3]} 4... Nf6 {[%clk 0:02:59.7]} 5. Nc3 {[%clk
0:02:57.9]} 5... Nxd5 {[%clk 0:02:59.1]} 6. Bc4 {[%clk 0:02:58.6]} 6... Nb6
{[%clk 0:02:58.5]} 7. Bb3 {[%clk 0:02:58.3]} 7... g6 {[%clk 0:02:58.3]} 8. Nf3
{[%clk 0:02:55.5]} 8... Bg7 {[%clk 0:02:58.4]} 9. O-O {[%clk 0:02:52.1]} 9...
O-O {[%clk 0:02:58.3]} 10. Re1 {[%clk 0:02:52]} 10... Nc6 {[%clk 0:02:58]} 11.
d3 {[%clk 0:02:50.6]} 11... Bg4 {[%clk 0:02:53.5]} 12. h3 {[%clk 0:02:49.3]}
12... Bxf3 {[%clk 0:02:51.7]} 13. Qxf3 {[%clk 0:02:50.2]} 13... e6 {[%clk
0:02:50.3]} 14. Ne4 {[%clk 0:02:45.1]} 14... Nd4 {[%clk 0:02:49.4]} 15. Qg3
{[%clk 0:02:41]} 15... Nxb3 {[%clk 0:02:47.1]} 16. axb3 {[%clk 0:02:41.9]} 16...
Nd5 {[%clk 0:02:43.7]} 17. Bg5 {[%clk 0:02:35.6]} 17... Qb6 {[%clk 0:02:43.3]}
18. h4 {[%clk 0:02:18.2]} 18... h5 {[%clk 0:02:31.8]} 19. Ra4 {[%clk 0:01:49.5]}
19... Qxb3 {[%clk 0:02:27.7]} 20. Nc5 {[%clk 0:01:49.5]} 20... Qxb2 {[%clk
0:02:19.4]} 21. Qf3 {[%clk 0:01:47.8]} 21... b5 {[%clk 0:02:10.9]} 22. Ra6
{[%clk 0:01:38.4]} 22... Qc3 {[%clk 0:02:05.9]} 23. Nd7 {[%clk 0:01:32]} 23...
Qxe1+ {[%clk 0:02:03.6]} 24. Kh2 {[%clk 0:01:31.7]} 0-1

[Event "Late-Titled-Tuesday-Blitz-January-16-2024"]
[Site "Chess.com"]
[Date "2024.01.16"]
[Round "3"]
[White "2346PL"]
[Black "alexrustemov"]
[Result "0-1"]
[WhiteElo "2524"]
[BlackElo "2846"]
[TimeControl "180+1"]
[EndTime "14:23:52 PST"]
[Termination "alexrustemov won by resignation"]

1. d4 {[%clk 0:02:50]} 1... d5 {[%clk 0:02:59.2]} 2. Nf3 {[%clk 0:02:49.3]} 2...
Nf6 {[%clk 0:02:58.9]} 3. Bg5 {[%clk 0:02:48.3]} 3... Ne4 {[%clk 0:02:57.1]} 4.
Bf4 {[%clk 0:02:46.3]} 4... c5 {[%clk 0:02:56.3]} 5. e3 {[%clk 0:02:45.5]} 5...
Nc6 {[%clk 0:02:55.2]} 6. c3 {[%clk 0:02:44.8]} 6... Qb6 {[%clk 0:02:47.7]} 7.
Qb3 {[%clk 0:02:44.1]} 7... c4 {[%clk 0:02:46.8]} 8. Qxb6 {[%clk 0:02:41.9]}
8... axb6 {[%clk 0:02:47.2]} 9. Nbd2 {[%clk 0:02:41.2]} 9... Nxd2 {[%clk
0:02:39.3]} 10. Nxd2 {[%clk 0:02:34.2]} 10... b5 {[%clk 0:02:39.4]} 11. a3
{[%clk 0:02:27.7]} 11... b4 {[%clk 0:02:35]} 12. cxb4 {[%clk 0:02:24.7]} 12...
Nxb4 {[%clk 0:02:34.4]} 13. Rc1 {[%clk 0:02:23]} 13... Nc6 {[%clk 0:02:32.2]}
14. Be2 {[%clk 0:02:19]} 14... e6 {[%clk 0:02:31.2]} 15. O-O {[%clk 0:02:14.5]}
15... b5 {[%clk 0:02:30.1]} 16. Nb3 {[%clk 0:01:21.7]} 16... Be7 {[%clk
0:02:18.6]} 17. Bg3 {[%clk 0:01:17.9]} 17... O-O {[%clk 0:02:12.3]} 18. e4
{[%clk 0:01:17.4]} 18... Bb7 {[%clk 0:02:02.6]} 19. exd5 {[%clk 0:01:16.8]}
19... exd5 {[%clk 0:02:01.4]} 20. Nc5 {[%clk 0:01:17.4]} 20... Nxd4 {[%clk
0:01:58.7]} 0-1

[Event "Late-Titled-Tuesday-Blitz-January-16-2024"]
[Site "Chess.com"]
[Date "2024.01.16"]
[Round "3"]
[White "Godzillator"]
[Black "miraitrunks"]
[Result "1-0"]
[WhiteElo "2348"]
[BlackElo "2085"]
[TimeControl "180+1"]
[EndTime "14:24:02 PST"]
[Termination "Godzillator won by checkmate"]

1. Nf3 {[%clk 0:03:00.9]} 1... e6 {[%clk 0:02:59.7]} 2. b3 {[%clk 0:03:00.5]}
2... d5 {[%clk 0:02:59.9]} 3. Bb2 {[%clk 0:03:00.8]} 3... Nf6 {[%clk 0:03:00.3]}
4. e3 {[%clk 0:03:00.2]} 4... Bd6 {[%clk 0:03:00.9]} 5. Be2 {[%clk 0:02:59.1]}
5... O-O {[%clk 0:03:01.5]} 6. O-O {[%clk 0:02:59.1]} 6... c5 {[%clk 0:03:02.1]}
7. c4 {[%clk 0:02:50.5]} 7... b6 {[%clk 0:02:56.4]} 8. cxd5 {[%clk 0:02:50.4]}
8... Nxd5 {[%clk 0:02:55.4]} 9. d4 {[%clk 0:02:49.2]} 9... Bb7 {[%clk
0:02:55.1]} 10. Nbd2 {[%clk 0:02:44.9]} 10... Nc6 {[%clk 0:02:52.4]} 11. Nc4
{[%clk 0:02:44.7]} 11... cxd4 {[%clk 0:02:49.8]} 12. Nxd6 {[%clk 0:02:41.4]}
12... Qxd6 {[%clk 0:02:50.7]} 13. Nxd4 {[%clk 0:02:41.5]} 13... Nxd4 {[%clk
0:02:50.7]} 14. Qxd4 {[%clk 0:02:41.2]} 14... e5 {[%clk 0:02:12.2]} 15. Qxe5
{[%clk 0:02:38.6]} 15... Qh6 {[%clk 0:02:09.5]} 16. Bf3 {[%clk 0:02:33.9]} 16...
Rfe8 {[%clk 0:02:08]} 17. Qg3 {[%clk 0:02:32.3]} 17... Rad8 {[%clk 0:02:02.2]}
18. Rfd1 {[%clk 0:02:26.8]} 18... Re6 {[%clk 0:01:18.9]} 19. Bxd5 {[%clk
0:02:14]} 19... Rg6 {[%clk 0:01:00.6]} 20. Bxb7 {[%clk 0:02:11.2]} 20... Rxd1+
{[%clk 0:00:54.3]} 21. Rxd1 {[%clk 0:02:10.2]} 21... Rxg3 {[%clk 0:00:54.6]} 22.
Rd8# {[%clk 0:02:09.8]} 1-0

[Event "Late-Titled-Tuesday-Blitz-January-16-2024"]
[Site "Chess.com"]
[Date "2024.01.16"]
[Round "3"]
[White "username0932589"]
[Black "Kiborg95"]
[Result "0-1"]
[WhiteElo "2543"]
[BlackElo "2875"]
[TimeControl "180+1"]
[EndTime "14:24:16 PST"]
[Termination "Kiborg95 won by resignation"]

1. e4 {[%clk 0:03:00.9]} 1... d6 {[%clk 0:02:55.7]} 2. d4 {[%clk 0:02:58.3]}
2... Nf6 {[%clk 0:02:56.3]} 3. Nc3 {[%clk 0:02:57.8]} 3... e5 {[%clk 0:02:56.9]}
4. Nge2 {[%clk 0:02:50]} 4... Nbd7 {[%clk 0:02:56.8]} 5. h3 {[%clk 0:02:44.6]}
5... h5 {[%clk 0:02:57]} 6. Bg5 {[%clk 0:02:39.2]} 6... c6 {[%clk 0:02:56.1]} 7.
Qd2 {[%clk 0:02:29.5]} 7... Be7 {[%clk 0:02:56.3]} 8. O-O-O {[%clk 0:02:29.4]}
8... b5 {[%clk 0:02:56.1]} 9. dxe5 {[%clk 0:02:20.7]} 9... dxe5 {[%clk
0:02:55.5]} 10. Bxf6 {[%clk 0:02:17.1]} 10... Nxf6 {[%clk 0:02:52.3]} 11. Qg5
{[%clk 0:01:40.9]} 11... Qc7 {[%clk 0:02:32.9]} 12. f4 {[%clk 0:01:40.9]} 12...
Nxe4 {[%clk 0:02:23.4]} 13. Qxg7 {[%clk 0:01:38.3]} 13... Bf6 {[%clk 0:02:24]}
14. Qxh8+ {[%clk 0:01:33.4]} 14... Bxh8 {[%clk 0:02:24.4]} 15. Nxe4 {[%clk
0:01:34.1]} 15... exf4 {[%clk 0:02:21.6]} 16. Nd6+ {[%clk 0:01:30.5]} 16... Kf8
{[%clk 0:02:21.8]} 17. Nxf4 {[%clk 0:01:30.8]} 17... Be5 {[%clk 0:02:19.4]} 18.
Nxc8 {[%clk 0:01:24.5]} 18... Bxf4+ {[%clk 0:02:19.3]} 19. Kb1 {[%clk
0:01:24.8]} 19... Rxc8 {[%clk 0:02:19.2]} 20. Bd3 {[%clk 0:01:25.7]} 20... Kg7
{[%clk 0:02:15.5]} 21. Rhf1 {[%clk 0:01:25.1]} 21... Re8 {[%clk 0:02:12.3]} 22.
Rf3 {[%clk 0:01:24.6]} 22... Bg3 {[%clk 0:02:04.7]} 23. a3 {[%clk 0:01:20.6]}
23... h4 {[%clk 0:02:03.7]} 24. Ka2 {[%clk 0:01:20]} 24... Re1 {[%clk
0:01:57.8]} 25. Rd2 {[%clk 0:01:20.4]} 25... Qe5 {[%clk 0:01:54.9]} 26. Bf5
{[%clk 0:01:16.9]} 26... Bf4 {[%clk 0:01:47.2]} 27. Rd7 {[%clk 0:01:16.1]} 27...
Qxf5 {[%clk 0:01:46.1]} 0-1

[Event "Late-Titled-Tuesday-Blitz-January-16-2024"]
[Site "Chess.com"]
[Date "2024.01.16"]
[Round "3"]
[White "Zkid"]
[Black "Aguiar94"]
[Result "1-0"]
[WhiteElo "2922"]
[BlackElo "2526"]
[TimeControl "180+1"]
[EndTime "14:24:38 PST"]
[Termination "Zkid won by resignation"]

1. e4 {[%clk 0:03:00.9]} 1... c5 {[%clk 0:02:59.7]} 2. Nf3 {[%clk 0:03:01]} 2...
e6 {[%clk 0:02:59.8]} 3. d4 {[%clk 0:03:01.5]} 3... cxd4 {[%clk 0:03:00.7]} 4.
Nxd4 {[%clk 0:03:02.2]} 4... Nc6 {[%clk 0:03:01.2]} 5. Nc3 {[%clk 0:03:01.6]}
5... Qc7 {[%clk 0:03:01.6]} 6. Be3 {[%clk 0:03:01.9]} 6... a6 {[%clk 0:03:02]}
7. Qd2 {[%clk 0:03:02.3]} 7... Nf6 {[%clk 0:03:02.5]} 8. f3 {[%clk 0:03:02.3]}
8... Be7 {[%clk 0:03:02.4]} 9. O-O-O {[%clk 0:03:02.4]} 9... O-O {[%clk
0:03:03]} 10. g4 {[%clk 0:03:01.6]} 10... b5 {[%clk 0:03:03.5]} 11. Kb1 {[%clk
0:02:59.7]} 11... Rd8 {[%clk 0:03:01.8]} 12. g5 {[%clk 0:02:53.3]} 12... Nh5
{[%clk 0:03:01.2]} 13. Be2 {[%clk 0:02:45.7]} 13... Bb7 {[%clk 0:02:46.1]} 14.
f4 {[%clk 0:02:35.7]} 14... Nxd4 {[%clk 0:02:41.4]} 15. Bxh5 {[%clk 0:02:35.6]}
15... Nc6 {[%clk 0:02:39.9]} 16. Rhf1 {[%clk 0:02:21]} 16... Na5 {[%clk
0:02:25.3]} 17. Bd4 {[%clk 0:02:08.1]} 17... Nc4 {[%clk 0:02:17]} 18. Qd3 {[%clk
0:02:03]} 18... Rac8 {[%clk 0:02:10.8]} 19. f5 {[%clk 0:01:56.2]} 19... g6
{[%clk 0:02:07.8]} 20. fxg6 {[%clk 0:01:52.2]} 20... fxg6 {[%clk 0:02:00.2]} 21.
Bxg6 {[%clk 0:01:23.7]} 21... hxg6 {[%clk 0:01:58.4]} 22. Qh3 {[%clk 0:01:23.4]}
22... e5 {[%clk 0:01:49.2]} 23. Rf7 {[%clk 0:01:22.3]} 23... Kxf7 {[%clk
0:01:37.3]} 24. Qh7+ {[%clk 0:01:21.7]} 24... Ke8 {[%clk 0:01:16.2]} 25. Qxg6+
{[%clk 0:01:20.7]} 1-0

[Event "Late-Titled-Tuesday-Blitz-January-16-2024"]
[Site "Chess.com"]
[Date "2024.01.16"]
[Round "3"]
[White "Lennis93"]
[Black "babero_gordo"]
[Result "1-0"]
[WhiteElo "2720"]
[BlackElo "1973"]
[TimeControl "180+1"]
[EndTime "14:24:38 PST"]
[Termination "Lennis93 won by checkmate"]

1. Nf3 {[%clk 0:02:56.8]} 1... Nf6 {[%clk 0:02:56.4]} 2. b3 {[%clk 0:02:56.7]}
2... g6 {[%clk 0:02:55]} 3. Bb2 {[%clk 0:02:57.3]} 3... Bg7 {[%clk 0:02:55.6]}
4. e3 {[%clk 0:02:56.9]} 4... O-O {[%clk 0:02:56]} 5. Be2 {[%clk 0:02:56.6]}
5... d6 {[%clk 0:02:56.2]} 6. O-O {[%clk 0:02:56.9]} 6... e5 {[%clk 0:02:56.2]}
7. d4 {[%clk 0:02:57.1]} 7... e4 {[%clk 0:02:44]} 8. Nfd2 {[%clk 0:02:57.1]}
8... Nc6 {[%clk 0:02:40.3]} 9. c4 {[%clk 0:02:55.4]} 9... Re8 {[%clk 0:02:34.9]}
10. Nc3 {[%clk 0:02:53.7]} 10... d5 {[%clk 0:02:20.4]} 11. cxd5 {[%clk
0:02:53.3]} 11... Nxd5 {[%clk 0:02:20.2]} 12. Ncxe4 {[%clk 0:02:50.6]} 12... Bf5
{[%clk 0:02:11.9]} 13. Ng3 {[%clk 0:02:50.6]} 13... Bd7 {[%clk 0:01:45.9]} 14.
a3 {[%clk 0:02:49.3]} 14... Qe7 {[%clk 0:01:32.4]} 15. Bf3 {[%clk 0:02:48]}
15... Nf6 {[%clk 0:01:27.8]} 16. b4 {[%clk 0:02:46.9]} 16... Rad8 {[%clk
0:01:26.8]} 17. b5 {[%clk 0:02:44.4]} 17... Na5 {[%clk 0:01:22.3]} 18. Qa4
{[%clk 0:02:44.4]} 18... b6 {[%clk 0:01:20]} 19. Nb3 {[%clk 0:02:44.4]} 19...
Nxb3 {[%clk 0:01:18.6]} 20. Qxb3 {[%clk 0:02:45.3]} 20... Be6 {[%clk 0:01:15.3]}
21. Qa4 {[%clk 0:02:45.1]} 21... Bd5 {[%clk 0:01:12.5]} 22. Bxd5 {[%clk
0:02:42.2]} 22... Nxd5 {[%clk 0:01:11.6]} 23. Rac1 {[%clk 0:02:41.6]} 23... Nxe3
{[%clk 0:00:58.2]} 24. fxe3 {[%clk 0:02:41.1]} 24... Qxe3+ {[%clk 0:00:58.8]}
25. Kh1 {[%clk 0:02:41.3]} 25... Rd5 {[%clk 0:00:54.7]} 26. Qc4 {[%clk
0:02:39.1]} 26... Rg5 {[%clk 0:00:43.9]} 27. Qxf7+ {[%clk 0:02:38.1]} 27... Kh8
{[%clk 0:00:42.5]} 28. Rxc7 {[%clk 0:02:31]} 28... Rg8 {[%clk 0:00:32.8]} 29. d5
{[%clk 0:02:29]} 29... Rxg3 {[%clk 0:00:15.7]} 30. Qxg7+ {[%clk 0:02:28.4]}
30... Rxg7 {[%clk 0:00:15.7]} 31. Rf8# {[%clk 0:02:28.5]} 1-0

[Event "Late-Titled-Tuesday-Blitz-January-16-2024"]
[Site "Chess.com"]
[Date "2024.01.16"]
[Round "3"]
[White "gmpeter008"]
[Black "chika-lily"]
[Result "0-1"]
[WhiteElo "2516"]
[BlackElo "2760"]
[TimeControl "180+1"]
[EndTime "14:24:41 PST"]
[Termination "chika-lily won by resignation"]

1. e4 {[%clk 0:02:59.7]} 1... c5 {[%clk 0:02:58.9]} 2. Nc3 {[%clk 0:02:58.9]}
2... Nc6 {[%clk 0:02:58.3]} 3. Bb5 {[%clk 0:02:58.6]} 3... Nd4 {[%clk
0:02:58.9]} 4. Nf3 {[%clk 0:02:57.9]} 4... Nxb5 {[%clk 0:02:56.2]} 5. Nxb5
{[%clk 0:02:58.8]} 5... a6 {[%clk 0:02:56.8]} 6. Nc3 {[%clk 0:02:58.4]} 6... d6
{[%clk 0:02:51]} 7. a4 {[%clk 0:02:53.7]} 7... Nf6 {[%clk 0:02:50.3]} 8. O-O
{[%clk 0:02:53.1]} 8... e5 {[%clk 0:02:49.6]} 9. d3 {[%clk 0:02:51.7]} 9... Be7
{[%clk 0:02:49.6]} 10. Bg5 {[%clk 0:02:51.3]} 10... Be6 {[%clk 0:02:48.9]} 11.
Nd2 {[%clk 0:02:49.5]} 11... h6 {[%clk 0:02:48.5]} 12. Bxf6 {[%clk 0:02:49.3]}
12... Bxf6 {[%clk 0:02:49.4]} 13. Nc4 {[%clk 0:02:49.2]} 13... O-O {[%clk
0:02:47]} 14. a5 {[%clk 0:02:49.5]} 14... Rb8 {[%clk 0:02:47.5]} 15. Nb6 {[%clk
0:02:49.1]} 15... Bg5 {[%clk 0:02:42.9]} 16. Ncd5 {[%clk 0:02:43.2]} 16... f5
{[%clk 0:02:42.8]} 17. exf5 {[%clk 0:02:42.4]} 17... Rxf5 {[%clk 0:02:35.9]} 18.
Qe2 {[%clk 0:02:37]} 18... Qf8 {[%clk 0:02:30.5]} 19. Ra4 {[%clk 0:02:23.8]}
19... Qf7 {[%clk 0:02:26.2]} 20. Nc3 {[%clk 0:02:18.6]} 20... Rf8 {[%clk
0:02:21.5]} 21. Nc4 {[%clk 0:02:08.7]} 21... Be7 {[%clk 0:02:15.7]} 22. Ne3
{[%clk 0:02:07.6]} 22... Rf4 {[%clk 0:02:08.1]} 23. Rxf4 {[%clk 0:02:04.7]}
23... exf4 {[%clk 0:02:07.2]} 24. Ned5 {[%clk 0:02:04]} 24... Bg5 {[%clk
0:01:54.3]} 25. h4 {[%clk 0:01:59.4]} 25... Bxd5 {[%clk 0:01:43]} 26. hxg5
{[%clk 0:01:57.2]} 26... f3 {[%clk 0:01:37.2]} 27. gxf3 {[%clk 0:01:03.3]} 27...
Bxf3 {[%clk 0:01:38.1]} 28. Qe3 {[%clk 0:01:03.7]} 28... Qh5 {[%clk 0:01:33.8]}
0-1

[Event "Late-Titled-Tuesday-Blitz-January-16-2024"]
[Site "Chess.com"]
[Date "2024.01.16"]
[Round "3"]
[White "AGW2016"]
[Black "Cambek64"]
[Result "1-0"]
[WhiteElo "2617"]
[BlackElo "2441"]
[TimeControl "180+1"]
[EndTime "14:24:43 PST"]
[Termination "AGW2016 won on time"]

1. d4 {[%clk 0:03:00.9]} 1... c5 {[%clk 0:00:14.9]} 2. d5 {[%clk 0:02:59.7]}
2... e5 {[%clk 0:00:14.3]} 3. c4 {[%clk 0:02:59.8]} 3... d6 {[%clk 0:00:14.9]}
4. Nc3 {[%clk 0:03:00.4]} 4... Nf6 {[%clk 0:00:15.2]} 5. e4 {[%clk 0:03:01.2]}
5... Be7 {[%clk 0:00:15.7]} 6. Nf3 {[%clk 0:03:00.8]} 6... O-O {[%clk
0:00:16.3]} 7. Be2 {[%clk 0:03:01.6]} 7... Ne8 {[%clk 0:00:16.5]} 8. O-O {[%clk
0:03:02.3]} 8... Nd7 {[%clk 0:00:16.4]} 9. a3 {[%clk 0:03:02.2]} 9... g6 {[%clk
0:00:17.1]} 10. b4 {[%clk 0:03:00.3]} 10... Ng7 {[%clk 0:00:16.9]} 11. Rb1
{[%clk 0:02:58.1]} 11... b6 {[%clk 0:00:17.5]} 12. Bh6 {[%clk 0:02:54.7]} 12...
f5 {[%clk 0:00:17.8]} 13. Nd2 {[%clk 0:02:54.9]} 13... f4 {[%clk 0:00:18.3]} 14.
Bg4 {[%clk 0:02:54.8]} 14... Nf6 {[%clk 0:00:18.5]} 15. Bxc8 {[%clk 0:02:54.6]}
15... Rxc8 {[%clk 0:00:18.8]} 16. bxc5 {[%clk 0:02:55.3]} 16... bxc5 {[%clk
0:00:18]} 17. Rb7 {[%clk 0:02:55.3]} 17... Rc7 {[%clk 0:00:17.4]} 18. Qb3 {[%clk
0:02:55.1]} 18... Qc8 {[%clk 0:00:15.9]} 19. Rb1 {[%clk 0:02:55.1]} 19... Rd8
{[%clk 0:00:15.8]} 20. Rxc7 {[%clk 0:02:52.9]} 20... Qxc7 {[%clk 0:00:16.4]} 21.
Qb7 {[%clk 0:02:53.8]} 21... Rd7 {[%clk 0:00:16.1]} 22. Qxc7 {[%clk 0:02:48.6]}
22... Rxc7 {[%clk 0:00:15.1]} 23. Rb8+ {[%clk 0:02:49.5]} 23... Kf7 {[%clk
0:00:14.1]} 24. Nb5 {[%clk 0:02:49.9]} 24... Rd7 {[%clk 0:00:13.2]} 25. Bxg7
{[%clk 0:02:48.9]} 25... Kxg7 {[%clk 0:00:12.1]} 26. Ra8 {[%clk 0:02:49.8]}
26... Bd8 {[%clk 0:00:06.9]} 27. Rxa7 {[%clk 0:02:50.2]} 27... Rxa7 {[%clk
0:00:06.1]} 28. Nxa7 {[%clk 0:02:51.1]} 28... Ba5 {[%clk 0:00:04.9]} 29. Nb3
{[%clk 0:02:51.4]} 29... Bc3 {[%clk 0:00:05]} 30. f3 {[%clk 0:02:51.5]} 30...
Kf7 {[%clk 0:00:03.4]} 31. Nc8 {[%clk 0:02:49.3]} 31... Ne8 {[%clk 0:00:02]} 32.
a4 {[%clk 0:02:49]} 32... Nc7 {[%clk 0:00:01.3]} 33. Nxd6+ {[%clk 0:02:48.9]}
33... Ke7 {[%clk 0:00:02]} 34. Nb5 {[%clk 0:02:49.8]} 34... Na6 {[%clk
0:00:01.6]} 35. Nxc3 {[%clk 0:02:49.6]} 1-0

[Event "Late-Titled-Tuesday-Blitz-January-16-2024"]
[Site "Chess.com"]
[Date "2024.01.16"]
[Round "3"]
[White "JSPrepz"]
[Black "TimGrutter03"]
[Result "1-0"]
[WhiteElo "2880"]
[BlackElo "2543"]
[TimeControl "180+1"]
[EndTime "14:24:51 PST"]
[Termination "JSPrepz won by resignation"]

1. e4 {[%clk 0:02:57.8]} 1... c5 {[%clk 0:03:00]} 2. Nf3 {[%clk 0:02:57.8]} 2...
d6 {[%clk 0:02:59.6]} 3. Nc3 {[%clk 0:02:57.3]} 3... Nf6 {[%clk 0:02:58.8]} 4.
e5 {[%clk 0:02:57.7]} 4... dxe5 {[%clk 0:02:57.9]} 5. Nxe5 {[%clk 0:02:58.6]}
5... Nbd7 {[%clk 0:02:54.1]} 6. d4 {[%clk 0:02:56.5]} 6... Nxe5 {[%clk
0:02:48.5]} 7. dxe5 {[%clk 0:02:56.5]} 7... Qxd1+ {[%clk 0:02:48]} 8. Kxd1
{[%clk 0:02:57.4]} 8... Ng4 {[%clk 0:02:44.8]} 9. Bb5+ {[%clk 0:02:58]} 9... Bd7
{[%clk 0:02:44.7]} 10. e6 {[%clk 0:02:57.3]} 10... fxe6 {[%clk 0:02:43.6]} 11.
Ke2 {[%clk 0:02:52.8]} 11... a6 {[%clk 0:02:34]} 12. Bxd7+ {[%clk 0:02:52.4]}
12... Kxd7 {[%clk 0:02:34.9]} 13. Bf4 {[%clk 0:02:33.9]} 13... g6 {[%clk
0:02:27.2]} 14. Rad1+ {[%clk 0:02:24.3]} 14... Kc6 {[%clk 0:02:27]} 15. Kf3
{[%clk 0:02:23.7]} 15... Nf6 {[%clk 0:02:25.1]} 16. Rhe1 {[%clk 0:02:23.4]}
16... b5 {[%clk 0:01:45.7]} 17. Rxe6+ {[%clk 0:02:22.2]} 17... Kb7 {[%clk
0:01:46.2]} 18. a4 {[%clk 0:01:39.2]} 18... b4 {[%clk 0:01:39.1]} 19. Ne4 {[%clk
0:01:37]} 19... Nxe4 {[%clk 0:01:34.3]} 20. Kxe4 {[%clk 0:01:31.3]} 20... Rg8
{[%clk 0:01:06.3]} 21. a5 {[%clk 0:01:22]} 1-0

[Event "Late-Titled-Tuesday-Blitz-January-16-2024"]
[Site "Chess.com"]
[Date "2024.01.16"]
[Round "3"]
[White "Pachonpower"]
[Black "Nf3c5"]
[Result "0-1"]
[WhiteElo "2271"]
[BlackElo "2561"]
[TimeControl "180+1"]
[EndTime "14:24:56 PST"]
[Termination "Nf3c5 won by resignation"]

1. e4 {[%clk 0:03:00.9]} 1... e5 {[%clk 0:02:51.1]} 2. Nf3 {[%clk 0:02:46.3]}
2... Nc6 {[%clk 0:02:49.6]} 3. Bc4 {[%clk 0:02:37.3]} 3... Nf6 {[%clk
0:02:45.7]} 4. O-O {[%clk 0:02:37.7]} 4... Nxe4 {[%clk 0:02:35.3]} 5. Re1 {[%clk
0:02:34.7]} 5... d5 {[%clk 0:01:47.8]} 6. d4 {[%clk 0:02:30.5]} 6... dxc4 {[%clk
0:01:31.3]} 7. Rxe4 {[%clk 0:02:28.5]} 7... Bf5 {[%clk 0:01:22.4]} 8. Bg5 {[%clk
0:02:18.1]} 8... f6 {[%clk 0:01:17.7]} 9. Qe1 {[%clk 0:02:03.4]} 9... Bxe4
{[%clk 0:01:14.2]} 10. Qxe4 {[%clk 0:02:04.3]} 10... fxg5 {[%clk 0:01:13.6]} 11.
d5 {[%clk 0:02:03.8]} 11... Ne7 {[%clk 0:01:04.9]} 12. Nc3 {[%clk 0:02:03.8]}
12... Ng6 {[%clk 0:01:02.2]} 13. Qxc4 {[%clk 0:01:59.7]} 13... Bd6 {[%clk
0:01:01.7]} 14. Ne4 {[%clk 0:01:57.9]} 14... O-O {[%clk 0:00:56.6]} 15. Nexg5
{[%clk 0:01:57.2]} 15... Rf4 {[%clk 0:00:54.5]} 16. Qe2 {[%clk 0:01:52.5]} 16...
Qf6 {[%clk 0:00:52.8]} 17. Ne6 {[%clk 0:01:52.3]} 17... Rxf3 {[%clk 0:00:48.6]}
18. Qxf3 {[%clk 0:01:53.2]} 18... Qxf3 {[%clk 0:00:48]} 19. gxf3 {[%clk
0:01:54.1]} 19... Nf4 {[%clk 0:00:48.8]} 20. Nxf4 {[%clk 0:01:49.1]} 20... exf4
{[%clk 0:00:49.1]} 21. Re1 {[%clk 0:01:49.8]} 21... Kf7 {[%clk 0:00:49.7]} 22.
Kg2 {[%clk 0:01:49.8]} 22... Re8 {[%clk 0:00:49.6]} 23. Re4 {[%clk 0:01:50.4]}
23... Rxe4 {[%clk 0:00:47.2]} 24. fxe4 {[%clk 0:01:51.3]} 24... Kf6 {[%clk
0:00:47.6]} 25. Kf3 {[%clk 0:01:50.3]} 25... Ke5 {[%clk 0:00:46.9]} 26. h4
{[%clk 0:01:51.2]} 26... g6 {[%clk 0:00:46.8]} 27. c3 {[%clk 0:01:50.8]} 27...
b5 {[%clk 0:00:45.3]} 28. b4 {[%clk 0:01:47.4]} 28... h5 {[%clk 0:00:43.9]} 29.
a3 {[%clk 0:01:46.8]} 29... Be7 {[%clk 0:00:44]} 0-1

[Event "Late-Titled-Tuesday-Blitz-January-16-2024"]
[Site "Chess.com"]
[Date "2024.01.16"]
[Round "3"]
[White "vugarrasulov"]
[Black "chegueps"]
[Result "1-0"]
[WhiteElo "2972"]
[BlackElo "2692"]
[TimeControl "180+1"]
[EndTime "14:25:24 PST"]
[Termination "vugarrasulov won by resignation"]

1. d4 {[%clk 0:03:00.9]} 1... Nf6 {[%clk 0:02:59.4]} 2. c4 {[%clk 0:03:00.5]}
2... g6 {[%clk 0:02:59.5]} 3. Nc3 {[%clk 0:02:59.5]} 3... Bg7 {[%clk 0:03:00.1]}
4. e4 {[%clk 0:02:59.4]} 4... O-O {[%clk 0:03:00.3]} 5. h3 {[%clk 0:02:59.3]}
5... d6 {[%clk 0:03:00.5]} 6. Be3 {[%clk 0:02:59.7]} 6... c6 {[%clk 0:02:54.8]}
7. Nf3 {[%clk 0:02:58.7]} 7... Nbd7 {[%clk 0:02:35.5]} 8. Be2 {[%clk 0:02:53.6]}
8... a5 {[%clk 0:02:32.5]} 9. O-O {[%clk 0:02:53]} 9... e5 {[%clk 0:02:31.2]}
10. d5 {[%clk 0:02:52]} 10... Nc5 {[%clk 0:02:27.6]} 11. Bxc5 {[%clk 0:02:45]}
11... dxc5 {[%clk 0:02:27.5]} 12. dxc6 {[%clk 0:02:45]} 12... bxc6 {[%clk
0:02:28]} 13. Qxd8 {[%clk 0:02:38.7]} 13... Rxd8 {[%clk 0:02:28.9]} 14. Nxe5
{[%clk 0:02:35.3]} 14... Nxe4 {[%clk 0:02:28.3]} 15. Nxc6 {[%clk 0:02:21.8]}
15... Nxc3 {[%clk 0:02:27.7]} 16. bxc3 {[%clk 0:02:21.2]} 16... Re8 {[%clk
0:02:25.5]} 17. Bf3 {[%clk 0:02:21.4]} 17... Ra6 {[%clk 0:02:09.4]} 18. Rfe1
{[%clk 0:02:13.1]} 18... Be6 {[%clk 0:02:04.1]} 19. Re3 {[%clk 0:02:07.1]} 19...
Kf8 {[%clk 0:01:55.6]} 20. Rae1 {[%clk 0:01:56.9]} 20... a4 {[%clk 0:01:43.5]}
21. Bd5 {[%clk 0:01:54.3]} 21... a3 {[%clk 0:01:32.6]} 22. Bxe6 {[%clk
0:01:40.6]} 22... Rxc6 {[%clk 0:01:12.3]} 23. Bd7 {[%clk 0:01:40.5]} 23... Rxe3
{[%clk 0:00:18.9]} 24. Rxe3 {[%clk 0:01:41.4]} 24... Re6 {[%clk 0:00:18.3]} 25.
Bxe6 {[%clk 0:01:41.3]} 25... fxe6 {[%clk 0:00:19.1]} 26. Rxe6 {[%clk
0:01:40.2]} 26... Bxc3 {[%clk 0:00:19]} 27. Kf1 {[%clk 0:01:40.6]} 27... Kf7
{[%clk 0:00:18.7]} 28. Ra6 {[%clk 0:01:39.9]} 28... Bb4 {[%clk 0:00:17.1]} 29.
Ke2 {[%clk 0:01:40.3]} 1-0